bitfinex/quotes_ETHUSD_20250623
["timestamp","ask_amount","ask_price","bid_price","bid_amount"]
[1750675757290,1.92,2249.9,2249.6,0.7712]
[1750675757494,1.92,2250.0,2249.8,10.0]
[1750675757698,1.92,2250.0,2249.9,0.7667]
[1750675757933,1.92,2250.5,2250.0,0.7667]
[1750675758715,0.0555474,2250.4,2250.0,0.7667]
[1750675759229,1.92,2250.5,2250.0,0.7667]
[1750675759534,1.97554766,2250.5,2250.0,1.68415735]
[1750675759736,1.97554766,2250.5,2250.0,0.7667]
[1750675760647,1.97554766,2250.5,2249.7,7.07187653]
[1750675760648,0.13908068,2250.4,2249.5,7.07187653]
[1750675760810,0.55,2250.6,2249.6,10.80020751]
[1750675761012,10.14426665,2250.5,2249.8,0.8226]
[1750675761210,10.00518765,2250.5,2249.8,0.8226]
[1750675762445,0.19462973,2250.4,2249.8,0.8226]
[1750675762633,0.13907314,2250.3,2249.8,0.8226]
[1750675762829,0.05555659,2250.4,2249.8,0.8226]
[1750675763035,0.13908657,2250.3,2249.8,0.8226]
[1750675763222,1.00607442,2250.4,2249.8,0.8226]
[1750675763425,0.13908485,2250.3,2249.8,0.8226]
[1750675763620,1.00607442,2250.4,2249.8,0.8226]
[1750675764248,0.19464097,2250.3,2249.8,0.8226]
[1750675764409,1.17614911,2250.3,2249.8,0.8226]
[1750675764606,0.13908218,2250.2,2249.8,0.8226]
[1750675764905,1.17614911,2250.3,2249.8,0.8226]
[1750675765319,1.1205903,2250.3,2249.8,0.8226]
[1750675765634,0.19464114,2250.2,2249.8,0.8226]
[1750675765817,1.1205903,2250.3,2249.8,0.8226]
[1750675766219,0.05555932,2250.2,2249.8,0.8226]
[1750675766419,1.1205903,2250.3,2249.6,0.778]
[1750675766619,0.13908848,2250.2,2249.6,0.78890751]
[1750675766855,1.1205903,2250.3,2249.6,1.79698591]
[1750675767067,0.13908373,2250.2,2249.7,0.778]
[1750675767357,1.917,2250.3,2249.9,0.778]
[1750675770563,0.05555685,2250.2,2249.9,0.778]
[1750675773180,1.917,2250.3,2249.9,0.778]
[1750675774029,3.87845645,2251.6,2250.1,0.7552]
[1750675774030,1.917,2250.5,2250.1,0.7552]
[1750675774671,1.9725482,2250.5,2250.1,0.7552]
[1750675774978,9.2935482,2250.5,2250.1,0.7552]
[1750675775212,9.238,2250.5,2250.1,0.7552]
[1750675775499,0.05554898,2250.4,2250.1,0.7552]
[1750675777094,9.238,2250.5,2250.1,0.7552]
[1750675777258,9.238,2250.5,2250.1,1.83072]
[1750675779600,9.238,2250.5,2250.1,2.27252406]
[1750675781814,0.05554827,2250.4,2250.1,2.27252406]
[1750675782315,0.05554827,2250.4,2250.1,1.83072]
[1750675782498,0.05554827,2250.4,2250.1,0.7552]
[1750675782706,9.238,2250.5,2250.1,0.7552]
[1750675787810,0.05555294,2250.4,2250.1,0.7552]
[1750675790454,0.05555294,2250.4,2249.9,10.0]
[1750675790455,0.05555294,2250.4,2249.9,0.7854]
[1750675790636,1.69209589,2250.4,2249.9,0.7854]
[1750675793830,1.69209589,2250.4,2249.7,0.7644]
[1750675797552,1.69209589,2250.4,2249.8,0.0367]
[1750675807466,1.69209589,2250.4,2249.7,0.7644]
[1750675808981,1.69209589,2250.4,2249.5,10.8214]
[1750675809142,1.80019724,2250.3,2249.5,12.48173712]
[1750675809344,0.05555898,2250.2,2249.5,12.48173712]
[1750675809543,0.05555898,2250.4,2249.5,12.48173712]
[1750675812485,0.05555898,2250.4,2249.6,0.0367]
[1750675813745,7.07187653,2250.3,2249.6,0.0367]
[1750675814076,0.05556479,2250.2,2249.6,0.0367]
[1750675814279,0.05556663,2250.1,2249.6,0.0367]
[1750675814493,0.71274413,2250.2,2249.4,0.0367]
[1750675814494,9.228,2250.0,2249.4,0.0367]
[1750675814859,9.228,2250.0,2249.4,17.07187653]
[1750675815051,9.228,2250.0,2249.5,0.0367]
[1750675815654,9.228,2250.0,2249.6,0.7923]
[1750675815860,9.228,2250.0,2249.7,0.0367]
[1750675817187,0.05556265,2249.9,2249.7,0.0367]
[1750675817703,0.05556268,2249.9,2249.7,0.0367]
[1750675818398,0.05556268,2249.9,2249.6,12.02694593]
[1750675818806,0.05556268,2249.9,2249.2,0.8308]
[1750675818972,0.05557018,2249.9,2249.2,0.8308]
[1750675822217,9.228,2250.0,2249.5,10.7973]
[1750675822218,1.914,2250.0,2249.5,10.7973]
[1750675822376,0.05557026,2249.9,2249.3,10.7973]
[1750675822924,0.05557026,2249.9,2249.1,0.7973]
[1750675824373,0.05557026,2249.9,2248.6,11.75913057]
[1750675824374,7.62187653,2249.8,2248.6,0.7906]
[1750675824574,7.07187653,2249.6,2248.6,10.7906]
[1750675824774,9.27857998,2249.5,2248.6,0.7906]
[1750675824974,10.85804565,2249.5,2248.7,0.78624765]
[1750675825982,0.05558004,2249.4,2248.7,0.78624765]
[1750675826183,0.05558004,2249.4,2248.8,10.0]
[1750675827015,9.223,2249.5,2248.8,10.0]
[1750675827319,0.05557991,2249.4,2248.7,0.78624765]
[1750675827496,0.05557991,2249.4,2248.8,11.15768476]
[1750675828127,0.05557991,2249.4,2248.8,10.0]
[1750675828503,0.05557991,2249.4,2248.6,0.7906]
[1750675828912,0.05557991,2249.4,2248.5,7.07187653]
[1750675828913,0.55,2249.3,2248.5,7.07187653]
[1750675829112,0.55,2249.4,2248.4,0.7806]
[1750675829304,7.62187653,2249.4,2248.2,7.89857653]
[1750675829612,7.62187653,2249.2,2248.2,0.8267]
[1750675829824,0.0555948,2249.1,2248.2,0.8267]
[1750675830013,1.911,2249.0,2248.2,7.89857653]
[1750675830202,7.312,2248.9,2248.2,7.89857653]
[1750675830399,1.911,2249.0,2248.8,7.07187653]
[1750675832708,1.911,2249.0,2248.8,7.82282428]
[1750675832909,1.911,2249.0,2248.9,0.8007]
[1750675833906,0.55,2249.7,2248.9,0.8007]
[1750675834143,1.911,2249.6,2249.3,7.07187653]
[1750675835634,1.911,2249.6,2249.3,7.82657653]
[1750675836717,1.911,2249.6,2249.3,8.61032733]
[1750675836921,1.911,2249.6,2249.5,7.07187653]
[1750675837543,1.911,2249.6,2249.5,17.07187653]
[1750675839440,1.911,2250.0,2249.5,17.07187653]
[1750675839649,0.05556047,2249.9,2249.5,17.07187653]
[1750675839832,0.05556047,2249.9,2249.5,10.0]
[1750675842458,0.05556047,2249.9,2249.6,0.0367]
[1750675842832,0.05556047,2249.9,2249.3,0.0367]
[1750675843060,0.9038437,2249.9,2249.3,0.0367]
[1750675843459,1.911,2250.0,2249.3,0.0367]
[1750675845160,1.911,2250.0,2249.4,0.0367]
[1750675848469,1.911,2250.0,2249.5,7.90087653]
[1750675849265,0.05556539,2249.9,2249.5,7.90087653]
[1750675852935,1.911,2250.0,2249.5,7.90087653]
[1750675853751,0.05556549,2249.9,2249.5,7.90087653]
[1750675854875,0.05556549,2249.9,2249.3,7.83937653]
[1750675855774,1.911,2250.0,2249.3,9.75696328]
[1750675856900,0.05556549,2249.9,2249.3,9.75696328]
[1750675857181,1.911,2250.0,2249.3,9.75696328]
[1750675857474,1.911,2250.0,2249.4,0.0367]
[1750675858075,0.05556549,2249.9,2249.4,0.0367]
[1750675858286,0.05556549,2249.9,2249.5,0.0367]
[1750675866708,1.911,2250.0,2249.5,0.0367]
[1750675867475,1.911,2250.0,2249.5,7.08279343]
[1750675869214,1.911,2250.0,2249.5,7.07187653]
[1750675869917,1.911,2250.0,2249.5,7.08279072]
[1750675870082,1.911,2250.0,2249.5,8.73571774]
[1750675871644,1.911,2250.0,2249.5,13.18111937]
[1750675871840,1.911,2250.0,2249.5,13.17020518]
[1750675872135,1.911,2250.0,2249.5,8.72480355]
[1750675872337,1.911,2250.0,2249.5,8.73571716]
[1750675872640,1.911,2250.0,2249.7,0.0367]
[1750675875033,1.911,2250.0,2249.7,11.55349071]
[1750675875343,1.908,2250.4,2250.1,0.0367]
[1750675875835,1.908,2250.4,2250.0,0.0367]
[1750675876030,1.908,2250.4,2250.0,0.04758881]
[1750675876338,1.908,2250.4,2250.0,0.0367]
[1750675877435,0.05554834,2250.3,2250.0,0.0367]
[1750675878736,0.05554834,2250.3,2249.8,0.7928]
[1750675878927,0.05554834,2250.3,2249.9,1.23096257]
[1750675879105,0.05554834,2250.3,2249.9,1.67990583]
[1750675881236,0.05554834,2250.3,2249.9,0.44894326]
[1750675881442,0.05554834,2250.3,2249.8,10.0]
[1750675881845,1.908,2250.4,2249.8,10.0]
[1750675883204,0.05555556,2250.3,2249.8,10.0]
[1750675883406,0.05555556,2250.3,2249.6,12.92258883]
[1750675883709,0.05555556,2250.3,2249.8,10.0]
[1750675883938,1.908,2250.4,2249.6,12.02450012]
[1750675885850,0.55,2250.2,2249.6,0.0367]
[1750675886213,1.908,2250.4,2249.6,0.0367]
[1750675886214,0.55,2250.3,2249.6,0.0367]
[1750675886538,0.05556749,2250.2,2249.6,7.10857653]
[1750675887757,0.05556031,2250.3,2249.6,7.10857653]
[1750675887922,0.05556031,2250.3,2249.6,7.68284205]
[1750675888841,0.05556028,2250.3,2249.6,7.68284205]
[1750675889443,1.908,2250.4,2249.6,7.68284205]
[1750675889940,0.05556023,2250.3,2249.6,7.68284205]
[1750675891359,1.908,2250.4,2249.6,7.68284205]
[1750675892054,11.234,2250.7,2249.8,7.07187653]
[1750675892360,11.234,2250.7,2249.7,0.8029048]
[1750675892361,1.905,2250.3,2250.0,7.07187653]
[1750675893060,1.905,2250.3,2250.0,7.08276509]
[1750675893226,1.905,2250.3,2250.0,7.87476509]
[1750675893427,1.905,2250.3,2250.1,1.23193398]
[1750675893848,12.589,2250.7,2250.2,7.08276513]
[1750675894047,12.589,2250.7,2250.4,7.07187653]
[1750675894452,10.682,2251.8,2250.6,7.07187653]
[1750675894660,9.205,2251.7,2250.8,7.07187653]
[1750675894823,0.55,2251.5,2250.8,7.07187653]
[1750675895026,10.0,2251.5,2250.8,7.07187653]
[1750675895454,10.0,2251.5,2250.6,7.08272576]
[1750675896234,7.3,2251.4,2250.6,7.53017484]
[1750675897355,1.9887,2251.6,2250.8,7.07187653]
[1750675897553,2.29437,2251.5,2250.8,8.26919035]
[1750675897754,1.905,2251.5,2251.0,7.07187653]
[1750675899363,0.05552507,2251.4,2250.9,0.8283]
[1750675900167,1.905,2251.5,2251.0,0.01084235]
[1750675900330,0.05552505,2251.4,2250.9,0.8283]
[1750675900536,0.05552505,2251.4,2251.0,2.35403505]
[1750675900737,0.05552505,2251.4,2251.0,12.35403505]
[1750675901360,0.05552505,2251.4,2251.0,10.0]
[1750675901871,0.05552505,2251.4,2250.8,8.26919035]
[1750675903556,1.905,2251.5,2250.8,22.72284721]
[1750675903761,1.905,2251.5,2250.9,10.0]
[1750675905884,1.905,2251.5,2250.8,8.26919035]
[1750675905885,1.905,2251.5,2251.2,7.07187653]
[1750675906054,1.905,2251.5,2251.3,0.70718765]
[1750675906555,1.905,2251.5,2250.8,18.26919035]
[1750675906758,0.05552401,2251.4,2250.8,18.26919035]
[1750675907371,1.905,2251.5,2250.8,18.26919035]
[1750675907372,1.905,2251.5,2250.8,22.71203955]
[1750675907783,1.905,2251.5,2251.0,7.07187653]
[1750675908170,0.05552527,2251.4,2250.8,11.19731382]
[1750675908374,0.05552527,2251.4,2250.9,1.77552157]
[1750675909285,1.905,2251.5,2250.9,1.7863688]
[1750675909686,0.05552749,2251.4,2250.9,1.77552157]
[1750675912282,0.05552749,2251.4,2250.9,8.8473981]
[1750675912486,1.905,2251.5,2251.0,10.0]
[1750675912793,1.905,2251.5,2251.1,1.88582453]
[1750675913289,12.586,2251.8,2251.2,10.0]
[1750675913492,0.05552498,2251.7,2251.2,10.0]
[1750675914373,12.586,2251.8,2251.2,10.0]
[1750675915994,0.05552662,2251.7,2251.2,10.0]
[1750675916211,0.05552662,2251.7,2251.2,10.90530229]
[1750675916714,12.586,2251.8,2251.2,10.90530229]
[1750675917209,0.05552443,2251.7,2251.2,10.90530229]
[1750675917386,12.586,2251.8,2251.2,10.90530229]
[1750675917795,7.292,2251.7,2251.2,11.66950229]
[1750675917977,19.878,2251.8,2251.3,2.5069469]
[1750675918377,9.196,2251.8,2251.3,2.5069469]
[1750675919312,1.904,2251.8,2251.3,2.5069469]
[1750675919813,0.05551553,2251.7,2251.3,2.5069469]
[1750675920008,0.05551553,2251.7,2251.4,2.56902659]
[1750675920224,1.904,2251.8,2251.4,2.56902659]
[1750675921208,1.904,2251.8,2251.5,10.7904]
[1750675921428,1.904,2251.8,2251.5,10.0]
[1750675921615,0.055517,2251.7,2251.2,0.90530229]
[1750675921913,1.904,2251.8,2251.3,1.16957023]
[1750675924605,0.05551947,2251.7,2251.3,1.16957023]
[1750675924927,0.05551947,2251.7,2251.2,0.90530229]
[1750675925283,1.904,2251.8,2251.2,0.90530229]
[1750675926015,0.05552244,2251.7,2251.2,0.90530229]
[1750675926310,1.904,2251.8,2251.2,0.90530229]
[1750675926511,1.904,2251.8,2251.3,0.61487968]
[1750675927015,1.904,2251.8,2251.4,0.7996]
[1750675929742,0.0555175,2251.7,2251.3,0.61487968]
[1750675930191,0.0555175,2251.7,2251.2,0.90530229]
[1750675930423,1.904,2251.8,2251.2,0.90530229]
[1750675931316,1.904,2251.8,2251.2,10.90530229]
[1750675932215,1.904,2251.8,2251.2,15.34737623]
[1750675932435,1.904,2251.8,2251.3,0.7886]
[1750675932727,1.904,2251.8,2251.4,1.61359762]
[1750675933102,1.904,2251.8,2251.5,0.01082487]
[1750675934241,1.904,2251.8,2251.5,7.0827014]
[1750675934567,1.901,2252.1,2251.6,0.7736]
[1750675935552,0.2250348,2252.5,2251.7,7.07187653]
[1750675935747,1.901,2252.3,2251.8,1.78454765]
[1750675935948,0.05550766,2252.2,2251.8,1.78454765]
[1750675936141,0.05550766,2252.2,2251.6,0.7736]
[1750675937334,1.901,2252.3,2251.8,10.0]
[1750675937749,0.2250348,2252.5,2251.9,0.7629]
[1750675937972,1.901,2252.4,2251.9,0.7629]
[1750675939391,1.901,2252.4,2252.0,10.0]
[1750675939521,1.901,2252.4,2252.1,1.7845575]
[1750675940920,1.901,2252.4,2252.1,1.79535013]
[1750675941155,0.2250348,2252.5,2252.2,0.7675]
[1750675941734,0.2250348,2252.5,2252.3,0.01077844]
[1750675941936,0.2250348,2252.5,2252.2,0.7675]
[1750675942161,0.2250348,2252.5,2252.3,1.00778973]
[1750675942351,0.2250348,2252.5,2252.3,1.01856825]
[1750675944235,0.2250348,2252.5,2252.3,1.00778973]
[1750675944742,0.2250348,2252.5,2252.1,2.23852077]
[1750675944923,0.2250348,2252.5,2252.1,0.45396327]
[1750675945128,0.2250348,2252.5,2251.8,22.29025379]
[1750675945330,1.9,2252.4,2251.8,10.7775]
[1750675945531,0.05550369,2252.3,2251.8,10.7775]
[1750675947434,0.05550369,2252.3,2251.8,0.7775]
[1750675947747,0.05550369,2252.3,2251.6,0.7919]
[1750675947943,0.05550369,2252.3,2251.6,1.24230878]
[1750675948147,0.05550369,2252.3,2251.6,0.45040878]
[1750675948361,0.05550369,2252.3,2251.5,7.07187653]
[1750675948562,0.05550369,2252.3,2251.6,10.0]
[1750675948860,1.9,2252.4,2251.6,13.11811718]
[1750675950373,0.05551077,2252.3,2251.6,13.11811718]
[1750675951651,0.55,2252.2,2251.3,10.0]
[1750675951967,0.05551841,2252.1,2251.3,10.0]
[1750675952660,0.05551841,2252.1,2251.5,10.0]
[1750675952837,0.55,2252.2,2251.5,10.0]
[1750675956673,0.55,2252.2,2251.3,0.8199]
[1750675956674,1.898,2252.1,2251.6,7.07187653]
[1750675956880,1.95351823,2252.1,2251.7,0.70718765]
[1750675957082,1.898,2252.1,2251.7,0.70718765]
[1750675957388,1.95350983,2252.1,2251.7,0.70718765]
[1750675957686,0.05550983,2252.1,2251.6,7.07187653]
[1750675957985,1.898,2252.1,2251.6,7.07187653]
[1750675958171,0.05550982,2252.0,2251.6,7.07187653]
[1750675958485,1.898,2252.1,2251.6,7.07187653]
[1750675958648,0.2250348,2252.5,2251.8,7.88657653]
[1750675958849,9.184,2252.4,2251.7,0.63228911]
[1750675959049,0.05550955,2252.3,2251.6,7.07187653]
[1750675960693,9.184,2252.4,2251.6,7.07187653]
[1750675961695,0.55,2252.3,2251.6,7.07187653]
[1750675965670,0.05551479,2252.2,2251.5,10.0]
[1750675965865,1.03446627,2252.2,2251.5,10.0]
[1750675967100,0.97895148,2252.2,2251.5,10.0]
[1750675968821,0.05551691,2252.1,2251.5,10.0]
[1750675969020,0.05551691,2252.1,2251.3,10.44609664]
[1750675969168,0.55,2252.0,2250.9,0.7839]
[1750675969500,0.55,2251.8,2250.9,7.51321253]
[1750675969669,0.55,2251.8,2251.0,10.978951]
[1750675969868,0.05553022,2251.7,2251.0,10.978951]
[1750675970073,0.05553022,2251.7,2250.9,7.51321253]
[1750675970273,0.55,2251.8,2251.0,10.0]
[1750675970549,0.2448,2251.7,2251.0,10.0]
[1750675972220,0.05553012,2251.6,2251.0,10.0]
[1750675972574,7.836,2251.5,2250.7,7.07187653]
[1750675972835,1.898,2251.4,2250.8,10.0]
[1750675973117,1.898,2251.4,2250.7,7.07187653]
[1750675973271,0.05553404,2251.3,2250.8,1.15151328]
[1750675973470,0.05553404,2251.3,2250.8,11.15151328]
[1750675973916,1.898,2251.4,2250.8,11.15151328]
[1750675975100,1.898,2251.4,2250.9,7.07187653]
[1750675975306,0.05553361,2251.3,2250.5,1.20046028]
[1750675975607,0.05553361,2251.3,2250.7,7.07187653]
[1750675975816,0.05553361,2251.3,2250.7,9.34344643]
[1750675977523,0.05553361,2251.3,2250.5,1.20046028]
[1750675977813,0.05553361,2251.3,2250.6,10.0]
[1750675978385,0.05553361,2251.3,2250.7,7.07187653]
[1750675982226,7.286,2251.5,2251.1,7.07187653]
[1750675982599,0.0555286,2251.4,2250.9,7.07187653]
[1750675983324,1.897,2251.3,2250.9,7.07187653]
[1750675983513,0.05552897,2251.2,2250.7,7.07187653]
[1750675983987,1.897,2251.3,2250.7,7.08273418]
[1750675984186,1.897,2251.3,2250.8,1.78947342]
[1750675984833,0.05553112,2251.2,2250.8,1.78947342]
[1750675985293,0.05553112,2251.2,2250.7,7.07187653]
[1750675986192,0.05553112,2251.2,2250.6,17.07187653]
[1750675990503,0.05553112,2251.2,2250.5,10.0]
[1750675990743,0.55,2251.2,2250.5,10.0]
[1750675991897,1.897,2251.1,2250.7,10.0]
[1750675992056,0.05553436,2251.0,2250.7,11.70827391]
[1750675992870,1.95253435,2251.1,2250.7,11.70827391]
[1750675993157,1.897,2251.1,2250.7,11.70827391]
[1750675993686,1.897,2251.2,2251.0,7.07187653]
[1750675994399,1.897,2251.2,2250.8,7.84027653]
[1750675994603,1.897,2251.2,2250.8,9.23944176]
[1750675994765,8.06347298,2252.0,2250.8,9.23944176]
[1750675994966,10.55,2251.8,2250.8,9.23944176]
[1750675995700,1.897,2251.7,2251.0,7.07187653]
[1750675995902,7.285,2251.6,2251.0,7.07187653]
[1750675996209,7.285,2251.6,2251.0,8.44118421]
[1750675996410,1.897,2251.7,2251.0,8.44118421]
[1750675996562,0.05552609,2251.5,2251.0,8.44118421]
[1750675997577,0.05552382,2251.6,2251.0,8.44118421]
[1750675997914,1.897,2251.5,2251.0,8.44118421]
[1750675998127,0.04468394,2251.9,2251.1,0.84411842]
[1750675998391,1.897,2251.8,2251.1,1.65961842]
[1750675998602,1.897,2251.8,2251.4,7.07187653]
[1750675999112,1.897,2251.8,2251.6,7.07187653]
[1750676001517,1.897,2251.8,2251.6,7.11628755]
[1750676001682,1.897,2251.8,2251.7,0.79188876]
[1750676002717,1.897,2251.8,2251.3,10.04440759]
[1750676002990,1.897,2251.8,2251.3,10.0]
[1750676004519,1.897,2251.8,2251.2,0.8112]
[1750676004714,1.897,2251.8,2251.3,10.0]
[1750676005307,0.04468394,2251.7,2251.1,0.84411842]
[1750676005625,0.04468394,2251.7,2251.2,2.01178026]
[1750676006924,0.04468394,2251.7,2251.2,12.01178026]
[1750676007432,0.5,2251.5,2251.2,10.0]
[1750676007588,0.04468394,2251.4,2251.2,10.0]
[1750676009552,0.5,2251.5,2251.2,10.0]
[1750676013929,0.5,2251.5,2251.1,0.84411842]
[1750676015249,0.04468394,2251.4,2250.9,0.8027]
[1750676017131,0.04468394,2251.4,2250.7,0.8206]
[1750676017465,1.895,2251.3,2250.6,10.0]
[1750676017657,0.04468394,2251.2,2250.6,10.0]
[1750676018268,1.895,2251.3,2250.6,10.0]
[1750676018479,0.04468394,2251.2,2250.7,1.92282465]
[1750676019062,1.895,2251.3,2250.8,10.0]
[1750676020278,0.04468394,2251.2,2250.8,10.0]
[1750676020570,1.895,2251.3,2250.8,10.0]
[1750676020861,0.5,2251.5,2250.9,7.07187653]
[1750676021089,0.5,2251.5,2251.1,7.07187653]
[1750676021378,1.895,2251.4,2251.1,7.07187653]
[1750676021853,1.895,2251.4,2251.0,1.70718765]
[1750676027356,1.895,2251.3,2251.0,1.70718765]
[1750676030037,1.895,2251.3,2251.0,1.75160754]
[1750676030242,1.895,2251.3,2251.1,0.88234841]
[1750676032245,1.895,2251.3,2251.0,1.70718765]
[1750676032442,0.04468394,2251.2,2251.0,1.70718765]
[1750676032776,0.04468394,2251.2,2250.8,10.7688]
[1750676033874,1.895,2251.3,2250.8,10.7688]
[1750676035982,1.895,2251.3,2250.8,10.0]
[1750676036177,0.04468394,2251.2,2250.7,11.92282465]
[1750676044708,0.04468394,2251.2,2250.7,10.0]
[1750676045004,1.895,2251.3,2250.7,10.0]
[1750676045298,1.892,2251.2,2250.8,7.07187653]
[1750676045864,1.892,2251.1,2251.0,7.07187653]
[1750676047608,1.892,2251.1,2250.8,7.92819979]
[1750676047807,1.892,2251.1,2250.9,0.79281998]
[1750676047970,1.892,2251.3,2251.1,0.7714]
[1750676048304,1.892,2251.4,2251.2,7.07187653]
[1750676048504,1.892,2251.5,2251.2,7.07187653]
[1750676048663,1.892,2251.5,2251.3,0.78432765]
[1750676049069,1.892,2251.5,2251.0,17.07187653]
[1750676049293,0.04468394,2251.4,2251.0,17.07187653]
[1750676049901,0.5,2251.2,2251.0,17.07187653]
[1750676052992,0.5,2251.2,2250.9,9.95294651]
[1750676053317,0.5,2251.2,2251.1,7.07187653]
[1750676053619,0.5,2251.2,2251.1,1.00131663]
[1750676053778,0.5,2251.2,2250.9,8.40742653]
[1750676053973,0.54468394,2251.2,2250.9,1.33555]
[1750676054211,0.54468394,2251.2,2250.7,7.88077653]
[1750676054508,0.5,2251.2,2250.7,9.21639253]
[1750676054887,0.5,2251.2,2250.9,17.07187653]
[1750676055094,0.5,2251.2,2251.0,11.71162995]
[1750676057017,0.5,2251.2,2250.7,9.21639253]
[1750676057180,0.04468394,2251.1,2250.7,9.21639253]
[1750676057380,0.04468394,2251.1,2250.8,10.0]
[1750676058429,0.04468394,2251.1,2250.6,1.335705]
[1750676058430,0.04468394,2251.1,2250.5,19.63691435]
[1750676061616,0.04468394,2251.1,2250.5,1.78943782]
[1750676061803,0.04468394,2251.1,2250.5,10.56305407]
[1750676062796,0.04468394,2251.1,2250.5,3.03753372]
[1750676062995,0.04468394,2251.1,2250.6,10.0]
[1750676063504,0.04468394,2251.1,2250.4,10.0]
[1750676063886,0.55,2251.0,2250.4,10.0]
[1750676064080,1.892,2250.9,2250.4,10.0]
[1750676065599,1.892,2250.9,2250.3,7.62187653]
[1750676065600,1.892,2250.9,2250.3,0.55]
[1750676065934,1.892,2250.9,2250.5,10.0]
[1750676066793,1.892,2250.8,2250.6,7.07187653]
[1750676069294,1.892,2250.9,2250.6,7.07187653]
[1750676070423,0.5,2251.2,2250.6,7.07187653]
[1750676070622,1.892,2250.9,2250.6,7.07187653]
[1750676070924,1.892,2250.9,2250.6,8.1711507]
[1750676076235,1.889,2250.9,2250.6,8.1711507]
[1750676077413,0.5,2251.2,2250.6,8.1711507]
[1750676077603,1.889,2251.1,2250.6,8.1711507]
[1750676080340,1.889,2251.0,2250.8,7.07187653]
[1750676081044,1.889,2251.0,2250.8,7.11629992]
[1750676083123,2.389,2251.2,2250.9,0.7539]
[1750676083433,2.389,2251.2,2251.0,7.11629659]
[1750676084425,0.5,2251.2,2251.0,7.11629659]
[1750676084629,0.5,2251.2,2251.1,0.7937]
[1750676084947,0.5,2251.2,2251.1,2.02896322]
[1750676086507,0.5,2251.2,2251.1,2.07338002]
[1750676086704,0.5,2251.2,2251.1,2.02896322]
[1750676086934,0.5,2251.2,2251.1,2.07338006]
[1750676091058,0.5,2251.2,2251.1,2.02896322]
[1750676091955,0.5,2251.2,2251.1,1.23526322]
[1750676092126,0.5,2251.2,2250.9,10.7748]
[1750676092324,0.5,2251.2,2250.7,0.7748]
[1750676092712,0.5,2251.2,2250.8,0.04442268]
[1750676093157,0.5,2251.2,2250.9,10.0]
[1750676093451,0.5,2251.2,2251.0,0.04441994]
[1750676093656,0.5,2251.2,2250.9,11.78910992]
[1750676093838,0.5,2251.2,2250.9,10.0]
[1750676094211,0.5,2251.2,2251.0,0.04441999]
[1750676094416,0.5,2251.2,2250.7,17.84667653]
[1750676094612,0.5,2251.2,2250.8,1.78466765]
[1750676095966,0.5,2251.2,2251.0,0.7561]
[1750676096261,0.5,2251.2,2251.1,0.04441731]
[1750676096463,0.5,2251.2,2251.0,10.7561]
[1750676097150,0.5,2251.2,2251.0,0.7561]
[1750676097480,0.5,2251.2,2251.0,2.01017677]
[1750676100351,0.5,2251.2,2250.9,10.0]
[1750676100554,0.5,2251.2,2250.6,0.7672]
[1750676101069,0.5,2251.2,2250.6,10.7672]
[1750676102452,0.04468394,2251.1,2250.6,10.0]
[1750676103184,0.5,2251.2,2250.3,7.83907653]
[1750676103382,0.7939,2251.2,2250.4,1.87185429]
[1750676103961,0.7939,2251.2,2250.6,10.0]
[1750676104368,0.04468394,2251.1,2250.6,10.0]
[1750676105478,1.886,2251.0,2250.6,10.0]
[1750676107160,1.886,2251.0,2250.7,7.07187653]
[1750676108969,1.886,2250.9,2250.7,8.78350688]
[1750676109781,1.886,2250.9,2250.7,1.71163035]
[1750676109956,1.886,2250.9,2250.6,7.89137653]
[1750676111874,0.5,2250.7,2250.6,7.89137653]
[1750676112948,0.5,2250.7,2250.6,7.93580248]
[1750676113794,0.5,2250.7,2250.6,7.89137653]
[1750676114196,0.5,2250.7,2250.6,17.89137653]
[1750676114493,0.5,2250.7,2250.6,21.30762069]
[1750676115670,1.886,2251.1,2250.6,21.30762069]
[1750676115886,1.886,2251.1,2250.8,7.07187653]
[1750676117291,0.5,2250.9,2250.8,7.07187653]
[1750676117699,0.5,2250.9,2250.6,21.30762069]
[1750676117852,0.5,2250.9,2250.6,20.48812069]
[1750676118751,0.5,2250.9,2250.6,10.0]
[1750676120698,0.5,2250.9,2250.8,17.85007653]
[1750676121261,0.5,2250.9,2250.8,22.29294128]
[1750676121588,1.886,2251.5,2250.8,22.29294128]
[1750676121793,1.886,2251.5,2251.1,7.07187653]
[1750676122155,3.1423,2251.5,2251.1,7.07187653]
[1750676122680,3.18698394,2251.5,2251.1,7.07187653]
[1750676123378,1.93068394,2251.5,2251.1,7.07187653]
[1750676124162,1.93068394,2251.5,2250.8,10.7782]
[1750676124362,1.93068394,2251.5,2250.8,10.0]
[1750676126700,0.1390132,2251.4,2250.8,10.0]
[1750676126873,0.04468394,2251.3,2250.8,10.0]
[1750676127064,7.263,2251.2,2250.8,10.0]
[1750676127397,0.5,2251.1,2250.8,10.0]
[1750676127599,1.886,2251.0,2250.8,10.0]
[1750676133123,1.886,2251.0,2250.7,10.0]
[1750676136628,1.886,2251.0,2250.6,7.07187653]
[1750676136925,1.886,2251.0,2250.7,10.0]
[1750676137893,1.886,2251.0,2250.6,7.07187653]
[1750676138526,1.886,2251.0,2250.6,7.1163028]
[1750676139927,0.5,2251.1,2250.7,1.23440556]
[1750676140128,1.883,2250.9,2250.8,7.11629964]
[1750676140429,1.883,2250.9,2250.8,7.07187653]
[1750676141128,0.5,2251.1,2250.8,7.07187653]
[1750676141335,1.883,2251.0,2250.8,8.39125338]
[1750676142531,1.883,2251.0,2250.8,8.34683027]
[1750676142738,0.5,2251.1,2250.8,1.31937769]